fUSD/lending_fUSD_20260504
["ID","MTS","AMOUNT","RATE_DAILY","PERIOD"]
[421569873,1777889446000,-532.9,0.00042391,60]
[421569877,1777889446000,-532.9,0.00042391,60]
[421569874,1777889446000,-532.9,0.00042391,60]
[421569875,1777889446000,-532.9,0.00042391,60]
[421569882,1777889446000,-500.0,0.00042391,60]
[421569878,1777889446000,-532.9,0.00042391,60]
[421569881,1777889446000,-500.0,0.00042391,60]
[421569888,1777889446000,-500.0,0.00042391,60]
[421569883,1777889446000,-500.0,0.00042391,60]
[421569889,1777889446000,-500.0,0.00042391,60]
[421569892,1777889446000,-500.0,0.00042391,60]
[421569885,1777889446000,-500.0,0.00042391,60]
[421569884,1777889446000,-500.0,0.00042391,60]
[421569886,1777889446000,-500.0,0.00042391,60]
[421569887,1777889446000,-500.0,0.00042391,60]
[421569915,1777889446000,-791.6,0.00042391,60]
[421569935,1777889446000,-156.0,0.00042392,120]
[421569911,1777889446000,-791.6,0.00042391,60]
[421569940,1777889446000,-155.0,0.00042392,120]
[421569942,1777889446000,-154.0,0.00042392,120]
[421569912,1777889446000,-791.6,0.00042391,60]
[421569944,1777889446000,-155.0,0.00042392,120]
[421569945,1777889446000,-778.0,0.00042392,120]
[421569949,1777889446000,-533.39406801,0.00034326,30]
[421569946,1777889446000,-573.59067389,0.00042392,120]
[421569947,1777889446000,-980332.98121135,0.00042392,60]
[421569939,1777889446000,-475.0,0.00042392,120]
[421569943,1777889446000,-153.0,0.00042392,120]
[421569950,1777889446000,-133.06934293,0.00034326,30]
[421569951,1777889446000,-388.94193208,0.00034326,30]
[421569953,1777889446000,-267.81,0.00042277,10]
[421569954,1777889446000,-1124478.41919241,0.00042392,60]
[421569952,1777889446000,-2156.12465698,0.00034326,30]
[421569955,1777889446000,-1274276.47851836,0.00042392,30]
[421569957,1777889446000,-4316.2266,0.00042392,30]
[421569956,1777889446000,-141.0823466,0.00042392,30]
[421569948,1777889446000,-332.189,0.00028124,2]
[421569933,1777889446000,-1168.59,0.00042391,60]
[421569941,1777889446000,-152.0,0.00042392,120]
[421569932,1777889446000,-1168.59,0.00042391,60]
[421569914,1777889446000,-791.6,0.00042391,60]
[421569917,1777889446000,-791.6,0.00042391,60]
[421569926,1777889446000,-1168.59,0.00042391,60]
[421569921,1777889446000,-791.6,0.00042391,60]
[421569938,1777889446000,-160.0,0.00042392,120]
[421569924,1777889446000,-1168.59,0.00042391,60]
[421569923,1777889446000,-1168.59,0.00042391,60]
[421569929,1777889446000,-1168.59,0.00042391,60]
[421569925,1777889446000,-1168.59,0.00042391,60]
[421569918,1777889446000,-791.6,0.00042391,60]
[421569920,1777889446000,-791.6,0.00042391,60]
[421569927,1777889446000,-1168.59,0.00042391,60]
[421569930,1777889446000,-1168.59,0.00042391,60]
[421569928,1777889446000,-1168.59,0.00042391,60]
[421569922,1777889446000,-791.80426244,0.00042391,60]
[421569931,1777889446000,-1168.59,0.00042391,60]
[421569936,1777889446000,-161.0,0.00042392,120]
[421569937,1777889446000,-160.0,0.00042392,120]
[421569934,1777889446000,-1168.66309457,0.00042391,60]
[421569919,1777889446000,-791.6,0.00042391,60]
[421569970,1777889449000,-400.0,0.00040508,2]
[421569980,1777889449000,-7861.7046638,0.00042392,30]
[421569962,1777889449000,-505.0,0.00027137,2]
[421569982,1777889449000,-3440.73506194,0.00042392,30]
[421569981,1777889449000,-407.43105726,0.00042392,30]
[421569976,1777889449000,-5472.60525364,0.00042392,30]
[421569977,1777889449000,-2176.83224407,0.00042392,30]
[421569967,1777889449000,-505.0,0.00037303,13]
[421569966,1777889449000,-505.0,0.0003527,10]
[421569978,1777889449000,-34639.78660893,0.00042392,30]
[421569971,1777889449000,-1508.40440786,0.00041099,2]
[421569983,1777889449000,-3484.72590126,0.00042392,30]
[421569972,1777889449000,-505.0,0.00041369,17]
[421569986,1777889449000,-4756.50812791,0.00042392,30]
[421569979,1777889449000,-41906.5254162,0.00042392,30]
[421569965,1777889449000,-505.0,0.00033237,8]
[421569963,1777889449000,-505.0,0.0002917,4]
[421569964,1777889449000,-505.0,0.00031203,6]
[421569974,1777889449000,-974.83516925,0.00042292,15]
[421569973,1777889449000,-2141.02,0.00041452,120]
[421569985,1777889449000,-773.00828993,0.00042392,30]
[421569968,1777889449000,-505.0,0.00039336,15]
[421569969,1777889449000,-974.83516925,0.00039848,15]
[421569984,1777889449000,-664.94529112,0.00042392,30]
[421569975,1777889449000,-259.0,0.00042392,60]
[421570014,1777889468000,10048.322627,7.945e-05,2]
[421570015,1777889493000,154.66816464,0.00020013,30]
[421570016,1777889494000,154.66816464,0.00020005,30]
[421570017,1777889511000,154.66816464,0.0002,30]
[421570023,1777889790000,-40.87,0.00020197,2]
[421570021,1777889790000,-300.0,0.00020196,2]
[421570022,1777889790000,-500.0,0.00020197,2]
[421570020,1777889790000,-305.0,0.00020196,2]
[421570019,1777889790000,-1200.0,0.00020196,2]
[421570018,1777889790000,-454.13,0.00016438,5]
[421570025,1777889827000,301.02860538,0.00020197,30]
[421570024,1777889827000,300.0,0.00022216,30]
[421570026,1777889883000,2156.65770909,0.00022216,120]
[421570029,1777890484000,5000.01,8e-05,2]
[421570033,1777890570000,-250.0,0.0001254,2]
[421570032,1777890570000,-3500.91551489,0.000114,2]
[421570035,1777890570000,-300.0,0.00016,2]
[421570034,1777890570000,-250.0,0.00014,2]
[421570038,1777890570000,-358.54,0.00018856,2]
[421570037,1777890570000,-675.03,0.00018856,2]
[421570039,1777890570000,-215.95617311,0.00019794,2]
[421570036,1777890570000,-158.25,0.00018001,2]
[421570050,1777890632000,-147155.61123796,0.00012,2]
[421570049,1777890632000,-286.42090319,0.00012,2]
[421570048,1777890632000,-272.08727352,0.00012,2]
[421570047,1777890632000,-783.0,0.00012,2]
[421570046,1777890632000,-391.755,0.00012,2]
[421570045,1777890632000,-78521.45369527,0.00012,2]
[421570077,1777890640000,-1553.9277753,0.00012,2]
[421570080,1777890640000,-7182.15009745,0.00012,2]
[421570079,1777890640000,-259.76131714,0.00012,2]
[421570078,1777890640000,-4700.15,0.00012,2]
[421570087,1777890641000,-277.41999,0.00012,2]
[421570089,1777890641000,-48993.48432967,0.00012,2]
[421570093,1777890641000,-335.65116044,0.00012,2]
[421570088,1777890641000,-7750.23518317,0.00012,2]
[421570090,1777890641000,-380.52932165,0.00012,2]
[421570092,1777890641000,-3895.05906562,0.00012,2]
[421570097,1777890641000,-1568.52,0.00012,2]
[421570094,1777890641000,-3263.77748107,0.00012,2]
[421570096,1777890641000,-1120.30058733,0.00012,2]
[421570095,1777890641000,-2514.30743155,0.00012,2]
[421570099,1777890641000,-2918.68033196,0.00012,2]
[421570091,1777890641000,-5971.45793231,0.00012,2]
[421570098,1777890641000,-826.34654,0.00012,2]
[421570108,1777890643000,-536.16821049,0.00012,2]
[421570109,1777890643000,-39250.0,0.00012,2]
[421570110,1777890643000,-2877.86358905,0.00012,2]
[421570130,1777890646000,-24316.76710539,0.00012,2]
[421570131,1777890646000,-906.0,0.00012,2]
[421570129,1777890646000,-364.14512968,0.00012,2]
[421570133,1777890646000,-5617.78873602,0.00012,2]
[421570134,1777890646000,-1854.5469682,0.00012,2]
[421570132,1777890646000,-169447.85656987,0.00012,2]
[421570140,1777890666000,931472.09974347,0.000107,2]
[421570141,1777890673000,49045.06169908,9.04e-05,2]
[421570143,1777891132000,-2113.64692129,0.000115,2]
[421570144,1777891132000,-192.9642103,0.000115,2]
[421570145,1777891132000,-500.0,0.000116,4]
[421570147,1777891132000,-1200.0,0.00011759,2]
[421570146,1777891132000,-1000.0,0.000117,4]
[421570149,1777891132000,-1268.513,0.0001176,2]
[421570150,1777891132000,-164.184,0.0001176,2]
[421570151,1777891132000,-300.0,0.00011799,2]
[421570152,1777891132000,-290.0,0.00011799,2]
[421570153,1777891132000,-1500.0,0.000118,4]
[421570148,1777891132000,-300.0,0.00011759,2]
[421570155,1777891133000,-150.0,0.00011999,2]
[421570154,1777891133000,-2000.0,0.000119,4]
[421570156,1777891133000,-3177720.1182025,0.00012,2]
[421570157,1777891151000,1833.1386539,0.00011999,2]
[421570158,1777891185000,282.53535985,0.00011999,2]
[421570159,1777891193000,157.41,0.00027291,120]
[421570160,1777891195000,500.0,0.00011999,2]
[421570161,1777891195000,332.32291628,0.00011999,2]
[421570162,1777891195000,500.0,0.00011999,2]
[421570163,1777891208000,233.54808641,0.00011999,2]
[421570164,1777891324000,7619.02864947,0.00011999,2]
[421570165,1777891550000,280.0,8.219e-05,2]
[421570187,1777891832000,-1000.0,0.00018134,2]
[421570186,1777891832000,-425.7436555,0.00017199,2]
[421570188,1777891832000,-157.41,0.00018194,2]
[421570191,1777891832000,-243.31813756,0.000185,2]
[421570219,1777891832000,-500.0,0.00020197,2]
[421570198,1777891832000,-243.31813756,0.000191,2]
[421570199,1777891832000,-243.31813756,0.000193,2]
[421570200,1777891832000,-165.14,0.000195,2]
[421570206,1777891832000,-3950.0,0.0002,2]
[421570193,1777891832000,-200.0,0.0001871,2]
[421570201,1777891832000,-5350.0,0.00019547,2]
[421570207,1777891832000,-1308.9812858,0.0002,2]
[421570203,1777891832000,-2356.6798,0.00019998,2]
[421570204,1777891832000,-1550.51821281,0.0002,2]
[421570202,1777891832000,-158.25,0.00019801,2]
[421570205,1777891832000,-178.41311344,0.0002,2]
[421570197,1777891832000,-1562.98,0.00019065,2]
[421570189,1777891832000,-150.0,0.00018194,2]
[421570181,1777891832000,-5114.34240913,0.00016,2]
[421570192,1777891832000,-243.31813756,0.000187,2]
[421570220,1777891832000,-610.6,0.00020197,2]
[421570171,1777891832000,-200.96341406,0.00011998,2]
[421570170,1777891832000,-300.0,0.00011998,2]
[421570172,1777891832000,-200.96341406,0.00011999,2]
[421570174,1777891832000,-4970.34018544,0.00011999,2]
[421570175,1777891832000,-425.7436555,0.00011999,2]
[421570173,1777891832000,-582.21877159,0.00011999,2]
[421570182,1777891832000,-392.7,0.0001618,2]
[421570195,1777891832000,-5878.0,0.00018888,2]
[421570176,1777891832000,-37754.2728272,0.0001239,2]
[421570178,1777891832000,-241.35497957,0.00013198,2]
[421570180,1777891832000,-300.0,0.00015999,2]
[421570179,1777891832000,-297.47777965,0.00013198,2]
[421570184,1777891832000,-1833.1386539,0.00017199,2]
[421570194,1777891832000,-5064.83,0.00018856,2]
[421570185,1777891832000,-13171.5876065,0.00017199,2]
[421570183,1777891832000,-5000.0,0.00017,2]
[421570190,1777891832000,-354.45606255,0.000185,3]
[421570177,1777891832000,-172.0,0.00013171,2]
[421570208,1777891832000,-1056.60302442,0.0002,2]
[421570196,1777891832000,-243.31813756,0.000189,2]
[421570210,1777891832000,-152.0,0.0002,2]
[421570235,1777891832000,-51946.21370672,0.00022,4]
[421570236,1777891832000,-163.0,0.00022,2]
[421570242,1777891832000,-4366.22,0.00022562,2]
[421570241,1777891832000,-5658.0,0.00022498,2]
[421570240,1777891832000,-425.7436555,0.00022398,2]
[421570238,1777891832000,-1833.1386539,0.00022398,2]
[421570239,1777891832000,-13171.5876065,0.00022398,2]
[421570244,1777891832000,-163.0,0.00023,2]
[421570234,1777891832000,-500.0,0.00021945,2]
[421570253,1777891832000,-5037.0,0.00024098,2]
[421570245,1777891832000,-299.0,0.00023,2]
[421570249,1777891832000,-1562.98,0.00023831,2]
[421570251,1777891832000,-163.0,0.00024,2]
[421570252,1777891832000,-299.0,0.00024,2]
[421570247,1777891832000,-190.79,0.000236,14]
[421570250,1777891832000,-243.21971765,0.00023953,2]
[421570248,1777891832000,-5054.0,0.00023654,2]
[421570211,1777891832000,-1662.3422733,0.0002,2]
[421570246,1777891832000,-158.25,0.00023401,2]
[421570232,1777891832000,-5462.0,0.00021789,2]
[421570243,1777891832000,-545.21,0.00022562,2]
[421570237,1777891832000,-299.0,0.00022,2]
[421570218,1777891832000,-500.0,0.00020197,2]
[421570233,1777891832000,-5000.0,0.00021918,2]
[421570214,1777891832000,-162.48539177,0.00020025,2]
[421570212,1777891832000,-163.0,0.0002,2]
[421570217,1777891832000,-500.0,0.00020197,2]
[421570216,1777891832000,-201.09973066,0.00020197,2]
[421570213,1777891832000,-299.0,0.0002,2]
[421570223,1777891832000,-325.99,0.00020306,2]
[421570221,1777891832000,-357.0,0.00020199,2]
[421570215,1777891832000,-500.0,0.00020196,2]
[421570222,1777891832000,-581.92,0.00020306,2]
[421570226,1777891832000,-57323.80949265,0.00021,2]
[421570224,1777891832000,-5325.0,0.00020325,2]
[421570228,1777891832000,-299.0,0.00021,2]
[421570231,1777891832000,-158.25,0.00021601,2]
[421570227,1777891832000,-163.0,0.00021,2]
[421570229,1777891832000,-157.41,0.00021226,2]
[421570225,1777891832000,-632.45,0.00020951,2]
[421570230,1777891832000,-1562.98,0.00021448,2]
[421570285,1777891833000,-500.0,0.00027123,2]
[421570286,1777891833000,-500.0,0.00027123,2]
[421570282,1777891833000,-500.0,0.00027123,2]
[421570281,1777891833000,-500.0,0.00027123,2]
[421570289,1777891833000,-500.0,0.00027123,2]
[421570279,1777891833000,-250.32719022,0.00027123,2]
[421570284,1777891833000,-500.0,0.00027123,2]
[421570283,1777891833000,-500.0,0.00027123,2]
[421570288,1777891833000,-500.0,0.00027123,2]
[421570287,1777891833000,-500.0,0.00027123,2]
[421570296,1777891833000,-506.83942771,0.00027123,2]
[421570301,1777891833000,-504.0,0.00027137,2]
[421570300,1777891833000,-255.50581158,0.00027123,2]
[421570302,1777891833000,-250.0,0.000272,2]
[421570292,1777891833000,-500.0,0.00027123,2]
[421570290,1777891833000,-500.0,0.00027123,2]
[421570293,1777891833000,-500.0,0.00027123,2]
[421570299,1777891833000,-500.0,0.00027123,2]
[421570297,1777891833000,-500.0,0.00027123,2]
[421570294,1777891833000,-514.3099146,0.00027123,2]
[421570280,1777891833000,-500.0,0.00027123,2]
[421570291,1777891833000,-500.0,0.00027123,2]
[421570278,1777891833000,-500.0,0.00027123,2]
[421570265,1777891833000,-272.23456614,0.00024902,2]
[421570273,1777891833000,-158.25,0.00027001,2]
[421570254,1777891833000,-5147.0,0.00024215,2]
[421570255,1777891833000,-157.41,0.00024258,2]
[421570262,1777891833000,-500.0,0.00024902,2]
[421570263,1777891833000,-210.03575189,0.00024902,2]
[421570295,1777891833000,-500.0,0.00027123,2]
[421570266,1777891833000,-8424.1169422,0.00024903,2]
[421570264,1777891833000,-582.6260414,0.00024902,2]
[421570261,1777891833000,-500.0,0.00024902,2]
[421570260,1777891833000,-500.0,0.00024902,2]
[421570258,1777891833000,-180.45,0.00024658,2]
[421570276,1777891833000,-500.0,0.00027123,2]
[421570257,1777891833000,-1000.0,0.00024658,2]
[421570259,1777891833000,-183.2,0.00024658,2]
[421570268,1777891833000,-311.0,0.00025,2]
[421570277,1777891833000,-500.0,0.00027123,2]
[421570267,1777891833000,-163.0,0.00025,2]
[421570272,1777891833000,-5333.0,0.00026459,2]
[421570274,1777891833000,-243.21971765,0.00027006,2]
[421570270,1777891833000,-5231.0,0.00025987,2]
[421570275,1777891833000,-550.0,0.00027115,2]
[421570271,1777891833000,-1562.98,0.00026214,2]
[421570269,1777891833000,-158.25,0.00025201,2]
[421570256,1777891833000,-500.0,0.00024657,2]
[421570298,1777891833000,-500.0,0.00027123,2]
[421570311,1777891833000,-13171.5876065,0.00027598,2]
[421570304,1777891833000,-1500.0,0.00027397,2]
[421570332,1777891833000,-271.22908436,0.00028598,2]
[421570334,1777891833000,-158.25,0.00028801,2]
[421570333,1777891833000,-1291.75091564,0.00028598,2]
[421570335,1777891833000,-244.27,0.00028981,2]
[421570336,1777891833000,-1761.90322565,0.00029,2]
[421570339,1777891833000,-504.0,0.00029435,4]
[421570337,1777891833000,-508.33594633,0.00029,2]
[421570303,1777891833000,-155.30302845,0.00027397,2]
[421570341,1777891833000,-5248.0,0.00029547,2]
[421570343,1777891833000,-443.39958113,0.000299,2]
[421570330,1777891833000,-500.0,0.00019994,2]
[421570342,1777891833000,-32534.5735303,0.000299,2]
[421570344,1777891833000,-366.15899185,0.00019994,2]
[421570346,1777891833000,-324.86383185,0.00019994,2]
[421570350,1777891833000,-371.2136631,0.00019994,2]
[421570345,1777891833000,-175.13616815,0.00019994,2]
[421570351,1777891833000,-500.0,0.00019994,2]
[421570349,1777891833000,-128.7863369,0.00019994,2]
[421570347,1777891833000,-1135.4599219,0.000299,2]
[421570352,1777891833000,-237.40391076,0.000299,2]
[421570348,1777891833000,-500.0,0.00019994,2]
[421570353,1777891833000,-538.18293477,0.000299,2]
[421570340,1777891833000,-150.0,0.00029534,2]
[421570331,1777891833000,-3051.41631564,0.0002847,2]
[421570338,1777891833000,-240.6,0.00029012,2]
[421570327,1777891833000,-500.0,0.00019994,2]
[421570312,1777891833000,-425.7436555,0.00027598,2]
[421570328,1777891833000,-500.0,0.00019994,2]
[421570313,1777891833000,-5222.0,0.00027635,2]
[421570314,1777891833000,-2000.0,0.00027671,30]
[421570307,1777891833000,-185.98,0.00027397,10]
[421570306,1777891833000,-300.0,0.00027397,2]
[421570310,1777891833000,-1833.1386539,0.00027598,2]
[421570309,1777891833000,-1500.0,0.000274,7]
[421570308,1777891833000,-154.98,0.00027397,10]
[421570315,1777891833000,-1879.6745624,0.00027695,2]
[421570316,1777891833000,-160.0,0.00028,2]
[421570305,1777891833000,-223.17,0.00027397,10]
[421570321,1777891833000,-2769.02573341,0.00028161,2]
[421570318,1777891833000,-177.44,0.00028,2]
[421570326,1777891833000,-651.4767907,0.0002847,2]
[421570324,1777891833000,-490.97420659,0.0002847,2]
[421570322,1777891833000,-1267.0,0.00028161,2]
[421570329,1777891833000,-500.0,0.00019994,2]
[421570320,1777891833000,-391.34847306,0.00028161,2]
[421570323,1777891833000,-411.0,0.00028161,2]
[421570317,1777891833000,-643.0,0.00028,2]
[421570325,1777891833000,-917.13268707,0.0002847,2]
[421570319,1777891833000,-374.62579353,0.00028161,2]
[421570370,1777891838000,-500.0,0.00019994,2]
[421570380,1777891838000,-500.0,0.00019994,2]
[421570373,1777891838000,-500.0,0.00019994,2]
[421570375,1777891838000,-500.0,0.00019994,2]
[421570374,1777891838000,-500.0,0.00019994,2]
[421570372,1777891838000,-500.0,0.00019994,2]
[421570368,1777891838000,-500.0,0.00019994,2]
[421570371,1777891838000,-500.0,0.00019994,2]
[421570378,1777891838000,-500.0,0.00019994,2]
[421570363,1777891838000,-500.0,0.00019994,2]
[421570369,1777891838000,-500.0,0.00019994,2]
[421570361,1777891838000,-500.0,0.00019994,2]
[421570365,1777891838000,-500.0,0.00019994,2]
[421570364,1777891838000,-500.0,0.00019994,2]
[421570362,1777891838000,-500.0,0.00019994,2]
[421570358,1777891838000,-500.0,0.00019994,2]
[421570359,1777891838000,-500.0,0.00019994,2]
[421570360,1777891838000,-500.0,0.00019994,2]
[421570366,1777891838000,-276.52368645,0.00019994,2]
[421570376,1777891838000,-500.0,0.00019994,2]
[421570367,1777891838000,-500.0,0.00019994,2]
[421570384,1777891838000,-189.1336779,0.00019994,2]
[421570379,1777891838000,-500.0,0.00019994,2]
[421570416,1777891838000,-1840.90787806,0.0003,2]
[421570414,1777891838000,-323.33588116,0.0003,2]
[421570410,1777891838000,-4738.71516346,0.000299,2]
[421570412,1777891838000,-240.21729325,0.0002999,2]
[421570407,1777891838000,-4000.0,0.000299,2]
[421570404,1777891838000,-1583.89080692,0.000299,2]
[421570402,1777891838000,-490.0,0.000299,2]
[421570399,1777891838000,-3015.00009,0.000299,2]
[421570418,1777891838000,-310.52680661,0.0003,2]
[421570396,1777891838000,-11723.04058533,0.000299,2]
[421570394,1777891838000,-1155.05164175,0.000299,2]
[421570387,1777891838000,-182.98,0.00024658,2]
[421570390,1777891838000,-243.98,0.00028953,2]
[421570382,1777891838000,-500.0,0.00019994,2]
[421570377,1777891838000,-500.0,0.00019994,2]
[421570381,1777891838000,-500.0,0.00019994,2]
[421570385,1777891838000,-500.0,0.00019994,2]
[421570383,1777891838000,-310.8663221,0.00019994,2]
[421570392,1777891838000,-18281.74202488,0.000299,2]
[421570436,1777891839000,-422.84661992,0.00030137,2]
[421570450,1777891839000,-177.44,0.00031151,2]
[421570455,1777891839000,-163.0,0.000312,30]
[421570440,1777891839000,-692.0,0.00030393,30]
[421570453,1777891839000,-3535.0,0.00031161,2]
[421570448,1777891839000,-150.0,0.00031011,2]
[421570438,1777891839000,-15737.88513259,0.000302,2]
[421570446,1777891839000,-277.0,0.00030723,30]
[421570422,1777891839000,-131.4373277,0.00030025,2]
[421570443,1777891839000,-158.25,0.00030601,2]
[421570431,1777891839000,-214.53947204,0.0003013,2]
[421570424,1777891839000,-5742.5626723,0.00030025,2]
[421570427,1777891839000,-243.21971765,0.00030059,2]
[421570429,1777891839000,-204.33006192,0.0003013,2]
[421570420,1777891839000,-165.09483293,0.0003,2]
[421570467,1777891839000,-163.0,0.000322,30]
[421570444,1777891839000,-166.0,0.00030723,30]
[421570473,1777891839000,-158.25,0.00032401,2]
[421570433,1777891839000,-182.99,0.00030136,7]
[421570469,1777891839000,-299.0,0.00032201,30]
[421570480,1777891839000,-500.0,0.00032877,2]
[421570484,1777891839000,-58.20545111,0.00032877,2]
[421570486,1777891839000,-177.67612946,0.00032877,2]
[421570485,1777891839000,-322.32387054,0.00032877,2]
[421570488,1777891839000,-23321.10329799,0.00033,5]
[421570487,1777891839000,-500.0,0.00032877,2]
[421570483,1777891839000,-441.79454889,0.00032877,2]
[421570482,1777891839000,-500.0,0.00032877,2]
[421570489,1777891839000,-8881.99152205,0.00033,2]
[421570481,1777891839000,-500.0,0.00032877,2]
[421570477,1777891839000,-5469.0,0.00032741,2]
[421570465,1777891839000,-516.0,0.00032153,5]
[421570461,1777891839000,-504.0,0.00031734,7]
[421570463,1777891839000,-314.0,0.00032153,5]
[421570459,1777891839000,-5654.0,0.00031452,2]
[421570475,1777891839000,-150.0,0.00032562,2]
[421570457,1777891839000,-299.0,0.00031201,30]
[421570471,1777891839000,-561.0,0.0003224,2]
[421570479,1777891839000,-4897.37610436,0.000328,2]
[421570508,1777891840000,-552.0,0.000328,30]
[421570518,1777891840000,-789.27935,0.00033,2]
[421570510,1777891840000,-202.60898019,0.00032877,30]
[421570534,1777891843000,-159.12041396,0.00033,2]
[421570532,1777891843000,-2651.62392891,0.00033,2]
[421570533,1777891843000,-2496.71903553,0.00033,2]
[421570531,1777891843000,-1363.67642079,0.00027397,2]
[421570556,1777891847000,-5489.0,0.00034357,2]
[421570557,1777891847000,-500.0,0.0003474,2]
[421570558,1777891847000,-1014.81,0.00034768,40]
[421570562,1777891847000,-3162.14265131,0.00035,120]
[421570559,1777891847000,-164.184,0.00034768,40]
[421570563,1777891847000,-5244.0,0.00035126,2]
[421570561,1777891847000,-200.0,0.000349,12]
[421570564,1777891847000,-163.0,0.000352,30]
[421570567,1777891847000,-500.0,0.00035616,7]
[421570568,1777891847000,-500.0,0.00035616,7]
[421570555,1777891847000,-158.25,0.00034201,2]
[421570560,1777891847000,-150.0,0.00034834,2]
[421570554,1777891847000,-299.0,0.00034201,30]
[421570540,1777891847000,-1414.20268056,0.00033,2]
[421570551,1777891847000,-2345.293,0.00034161,2]
[421570550,1777891847000,-504.0,0.00034032,9]
[421570546,1777891847000,-163.0,0.000332,30]
[421570548,1777891847000,-5487.0,0.00033265,2]
[421570547,1777891847000,-299.0,0.00033201,30]
[421570549,1777891847000,-489.61753613,0.000335,2]
[421570545,1777891847000,-243.21971765,0.00033111,2]
[421570544,1777891847000,-150.0,0.000331,10]
[421570543,1777891847000,-277.0,0.00033,30]
[421570542,1777891847000,-362.67200652,0.00033,7]
[421570541,1777891847000,-35630.86835474,0.00033,2]
[421570552,1777891847000,-150.0,0.0003419,2]
[421570573,1777891847000,-500.0,0.00035616,7]
[421570553,1777891847000,-163.0,0.000342,30]
[421570570,1777891847000,-500.0,0.00035616,7]
[421570595,1777891847000,-150.0,0.00035834,2]
[421570566,1777891847000,-150.0,0.00035211,30]
[421570601,1777891847000,-163.0,0.000362,30]
[421570597,1777891847000,-162.48539177,0.00036,7]
[421570598,1777891847000,-158.25,0.00036001,2]
[421570599,1777891847000,-492.475028,0.00036102,2]
[421570569,1777891847000,-500.0,0.00035616,7]
[421570596,1777891847000,-150.0,0.00035899,2]
[421570594,1777891847000,-500.0,0.000357,5]
[421570592,1777891847000,-500.0,0.00035616,7]
[421570593,1777891847000,-500.0,0.000357,5]
[421570583,1777891847000,-500.0,0.00035616,7]
[421570581,1777891847000,-500.0,0.00035616,7]
[421570585,1777891847000,-500.0,0.00035616,7]
[421570586,1777891847000,-500.0,0.00035616,7]
[421570584,1777891847000,-500.0,0.00035616,7]
[421570600,1777891847000,-243.21971765,0.00036164,2]
[421570589,1777891847000,-500.0,0.00035616,7]
[421570582,1777891847000,-500.0,0.00035616,7]
[421570572,1777891847000,-500.0,0.00035616,7]
[421570571,1777891847000,-500.0,0.00035616,7]
[421570574,1777891847000,-500.0,0.00035616,7]
[421570575,1777891847000,-500.0,0.00035616,7]
[421570565,1777891847000,-299.0,0.00035201,30]
[421570576,1777891847000,-455.4902438,0.00035616,7]
[421570587,1777891847000,-500.0,0.00035616,7]
[421570591,1777891847000,-500.0,0.00035616,7]
[421570590,1777891847000,-500.0,0.00035616,7]
[421570579,1777891847000,-500.0,0.00035616,7]
[421570577,1777891847000,-500.0,0.00035616,7]
[421570578,1777891847000,-500.0,0.00035616,7]
[421570618,1777891848000,-774.94,0.00038024,10]
[421570612,1777891848000,-299.0,0.00037201,30]
[421570621,1777891848000,-2619.73,0.00038034,30]
[421570619,1777891848000,-349.15,0.00038034,30]
[421570620,1777891848000,-195.59,0.00038034,30]